{"text_format":"1","workbook":"xlsx","n_sheets":13,"sheets":["1","2","3","4","5","6","7","8","9","10","11","12","Общая"],"not_rendered":{"charts":0,"images":14,"macros":1,"external_links":0,"defined_names":0,"comments":0,"pivot_tables":0},"unopened":[],"bounds":{"document_bytes":16777216,"sheet_cells":100000,"rows_first":2000,"rows_last":500,"rows_between":2000,"halvings":0,"cell_chars":16384,"cell_head_chars":4096},"cells_cut":0,"cells_raw":0,"read":"whole","date_system":"1900"}

{"sheet":"1","index":0,"n_rows":0,"n_cols":0,"rows_kept":0,"cut":false,"hidden":false,"merged":[]}

{"sheet":"2","index":1,"n_rows":12,"n_cols":11,"rows_kept":12,"cut":false,"hidden":false,"merged":[[5,1,5,2],[5,3,5,4],[5,5,5,6],[5,7,5,8],[5,9,5,10]]}
[]
[]
[]
[]
[]
[null,"Полиглотики",null,"Франшиза 2",null,"Франшиза 3",null,"Франшиза 4",null,"Франшиза 5"]
[null,"Информация","Баллы","Информация","Баллы","Информация","Баллы","Информация","Баллы","Информация","Баллы"]
["Сайт франшизы","https://www.poliglotiki.ru/franchajzing.html",null,"-",null,"-",null,"-",null,"-"]
["Поддомен на корп.сайте или сайт","да/да",null,"-",null,"-",null,"-",null,"-"]
["Раскрученность бренда","Более 10 тыс публикаций:  Forbes, Коммерсант, РБК, Известия, и т.д. \nТОП-10 Forbes, ТОП-50 РБК",null,"-",null,"-",null,"-",null,"-"]
["Год основания",2006,null,"-",null,"-",null,"-",null,"-"]
["Достижения","Лауреат «Лидеры России - 2021» Северо-Западного федерального округа.\nПобедитель программы для социальных предпринимателей «Навстречу импакт-инвестициям» 2020.\nФиналист конкурса стартапов EdTech Challenge B2C 2021.\n2 место в акселераторе White Night Startup 2021.\nЛидерский проект Агентства стратегических инициатив (АСИ) 2022.\nТОП-10 самых выгодных франшиз России Forbes 2019, 2020, 2021, 2022.\n2 место в рейтинге ТОП-10 Forbes 2023 с инвестициями 1-5 млн. ",null,"-",null,"-",null,"-",null,"-"]

{"sheet":"3","index":2,"n_rows":11,"n_cols":11,"rows_kept":11,"cut":false,"hidden":false,"merged":[[5,1,5,2],[5,3,5,4],[5,5,5,6],[5,7,5,8],[5,9,5,10]]}
[]
[]
[]
[]
[]
[null,"ПОЛИГЛОТИКИ",null,"Франшиза 2",null,"Франшиза 3",null,"Франшиза 4",null,"Франшиза 5"]
[null,"Информация","Баллы","Информация","Баллы","Информация","Баллы","Информация","Баллы","Информация","Баллы"]
["Головная компания, город","Санкт-Петербург",null,"-",null,"-",null,"-",null,"-"]
["Страны присутствия, шт","Россия, Казахстан и Азербайджан",null,"-",null,"-",null,"-",null,"-"]
["Города присутствия, шт",89,null,"-",null,"-",null,"-",null,"-"]
["Количество открытых точек  (Свои/ франшиза)","1 / 175+",null,"-",null,"-",null,"-",null,"-"]

{"sheet":"4","index":3,"n_rows":10,"n_cols":11,"rows_kept":10,"cut":false,"hidden":false,"merged":[[5,1,5,2],[5,3,5,4],[5,5,5,6],[5,7,5,8],[5,9,5,10]]}
[]
[]
[]
[]
[]
[null,"ПОЛИГЛОТИКИ",null,"Франшиза 2",null,"Франшиза 3",null,"Франшиза 4",null,"Франшиза 5"]
[null,"Информация","Баллы","Информация","Баллы","Информация","Баллы","Информация","Баллы","Информация","Баллы"]
["Тип договора","Договор коммерческой концессии с регистрацией в Роспатенте и ФИПС ",null,"-",null,"-",null,"-",null,"-"]
["Возможность общения с партнёрами","открытая информация (адреса центров на сайте poliglotiki.ru), по запросу контакты партнеров из конкретных городов для экскурсии,\nобщий чат с партнерами после покупки франшизы,\nрегулярные онлайн и офлайн встречи ",null,"-",null,"-",null,"-",null,"-"]
["Бизнес-модель","1. Детский образовательный центр\n2. Частная школа с семейными классами\n3. Полилнгвальный детский сад\n4. Онлайн-обучение детей",null,"-",null,"-",null,"-",null,"-"]

{"sheet":"5","index":4,"n_rows":11,"n_cols":11,"rows_kept":11,"cut":false,"hidden":false,"merged":[[5,1,5,2],[5,3,5,4],[5,5,5,6],[5,7,5,8],[5,9,5,10]]}
[]
[]
[]
[]
[]
[null,"ПОЛИГЛОТИКИ",null,"Франшиза 2",null,"Франшиза 3",null,"Франшиза 4",null,"Франшиза 5"]
[null,"Информация","Баллы","Информация","Баллы","Информация","Баллы","Информация","Баллы","Информация","Баллы"]
["Паушальный   взнос","от 180 000 руб. (город от 50тыс.чел. населения) до 490 000 руб. (миллионник)",null,"-",null,"-",null,"-",null,"-"]
["Специальные условия","Отсрочка по оплате роялти до момента открытия центра.\nРассрочка на год без процентов на вторую половину взноса.\nГарантия на первые 50 клиентов.\nОткрытие бесплатно второй точки в течение двух лет на незанятой территории своего города.\n",null,"-",null,"-",null,"-",null,"-"]
["Роялти","Детский центр: от 16 000 руб.\nШкола: от 16 000 руб.\nДетский сад: от 20 000 руб.",null,"-",null,"-",null,"-",null,"-"]
["Маркетинговый сбор","нет",null,"-",null,"-",null,"-",null,"-"]

{"sheet":"6","index":5,"n_rows":11,"n_cols":11,"rows_kept":11,"cut":false,"hidden":false,"merged":[[5,1,5,2],[5,3,5,4],[5,5,5,6],[5,7,5,8],[5,9,5,10]]}
[]
[]
[]
[]
[]
[null,"ПОЛИГЛОТИКИ",null,"Франшиза 2",null,"Франшиза 3",null,"Франшиза 4",null,"Франшиза 5"]
[null,"Информация","Баллы","Информация","Баллы","Информация","Баллы","Информация","Баллы","Информация","Баллы"]
["Общие инвестиции","Детский центр:\nШкола: от 3 млн руб.\nДетский сад:1,7 млн руб",null,"-",null,"-",null,"-",null,"-"]
["Срок окупаемости","Детский центр: от 6 мес.\nШкола: от 8 мес.\nДетский сад: от 6 мес.",null,"-",null,"-",null,"-",null,"-"]
["Срок запуска","Детский центр: 30 дней\nШкола: 2 мес.\nДетский сад: 2 мес.",null,"-",null,"-",null,"-",null,"-"]
["Защита инвестиций"," Право на использование ТМ и открытие точки на закрепленной за партнером территории, возможность бесплатно открыть вторую точку в течение 2 лет.\nПолучение субсидий и грантов, льгот для социальных предприятий.",null,"-",null,"-",null,"-",null,"-"]

{"sheet":"7","index":6,"n_rows":10,"n_cols":11,"rows_kept":10,"cut":false,"hidden":false,"merged":[[5,1,5,2],[5,3,5,4],[5,5,5,6],[5,7,5,8],[5,9,5,10]]}
[]
[]
[]
[]
[]
[null,"ПОЛИГЛОТИКИ",null,"Франшиза 2",null,"Франшиза 3",null,"Франшиза 4",null,"Франшиза 5"]
[null,"Информация","Баллы","Информация","Баллы","Информация","Баллы","Информация","Баллы","Информация","Баллы"]
["Оборудование","Контакты поставщиков для закупки мебели и оборудования в детский центр",null,"-",null,"-",null,"-",null,"-"]
["Используемые технологии","Собственная CRM-система для управленческого учета\nОбразовательная онлайн-платформа с бесплатным доступом ко всем курсам Poliglotiki.com\n",null,"-",null,"-",null,"-",null,"-"]
["Обслуживание, техподдержка","внутренняяя служба компании",null,"-",null,"-",null,"-",null,"-"]

{"sheet":"8","index":7,"n_rows":10,"n_cols":11,"rows_kept":10,"cut":false,"hidden":false,"merged":[[5,1,5,2],[5,3,5,4],[5,5,5,6],[5,7,5,8],[5,9,5,10]]}
[]
[]
[]
[]
[]
[null,"ПОЛИГЛОТИКИ",null,"Франшиза 2",null,"Франшиза 3",null,"Франшиза 4",null,"Франшиза 5"]
[null,"Информация","Баллы","Информация","Баллы","Информация","Баллы","Информация","Баллы","Информация","Баллы"]
["Заявленные доходы (мес.)","от 310 000 руб./месяц (для городов с 50 тыс. жителей)\nот 795 000 руб./месяц (для миллионников)",null,"-",null,"-",null,"-",null,"-"]
["Заявленные расходы (мес.)","до 60% от доходов",null,"-",null,"-",null,"-",null,"-"]
["Заявленная прибыль (мес.)","от 165 000 руб./месяц (для городов с 50 тыс. жителей)\nот 345 000 руб./месяц (для миллионников)",null,"-",null,"-",null,"-",null,"-"]

{"sheet":"9","index":8,"n_rows":12,"n_cols":11,"rows_kept":12,"cut":false,"hidden":false,"merged":[[5,1,5,2],[5,3,5,4],[5,5,5,6],[5,7,5,8],[5,9,5,10]]}
[]
[]
[]
[]
[]
[null,"ПОЛИГЛОТИКИ",null,"Франшиза 2",null,"Франшиза 3",null,"Франшиза 4",null,"Франшиза 5"]
[null,"Информация","Баллы","Информация","Баллы","Информация","Баллы","Информация","Баллы","Информация","Баллы"]
["Методика","Полное описание (и обучение) учебной методики с поурочным планированием и таймингом по 5 языкам, программы на русском языке. Около 100 авторских программ Полиглотики: https://www.poliglotiki.ru/programs.html ",null,"-",null,"-",null,"-",null,"-"]
["Сертификация методик","Соответствуют общемировым стандартам дошкольного и школьного образования, требованиям ФГОС. Программы прошли добровольную сертификацию"]
["Требования к помещению","Помещение от 50 до 120 м²;\nОт двух кабинетов для занятий;\nХолл, санузел;\nНе выше 3-го этажа. Не подвал.",null,"-",null,"-",null,"-",null,"-"]
["Обучение преподавателей","Более 130 часов вебинаров в записи. Онлайн-эфиры ежемесячно. Общий чат для педагогов. Очные тренинги, конференции, слеты в Санкт-Петербурге и Москве. Собственная система аттестации персонала. Партнер может провести обучение для неограниченного количества преподавателей своего Центра без доплат!",null,"-",null,"-",null,"-",null,"-"]
["Подбор преподавателей","Каждый кандидат проходит онлайн-собеседование в методистами управляющей компании, проходит тестирование знаний. По статистике методического центра сети, после многоэтапного отбора и тестирования из 50 кандидатов к работе приступает 1.",null,"-",null,"-",null,"-",null,"-"]

{"sheet":"10","index":9,"n_rows":11,"n_cols":11,"rows_kept":11,"cut":false,"hidden":false,"merged":[[5,1,5,2],[5,3,5,4],[5,5,5,6],[5,7,5,8],[5,9,5,10]]}
[]
[]
[]
[]
[]
[null,"ПОЛИГЛОТИКИ",null,"Франшиза 2",null,"Франшиза 3",null,"Франшиза 4",null,"Франшиза 5"]
[null,"Информация","Баллы","Информация","Баллы","Информация","Баллы","Информация","Баллы","Информация","Баллы"]
["Стоимость абонемента","от 3200 руб",null,"-",null,"-",null,"-",null,"-"]
["Защита от ценового демпинга","контролируемая минимальная рекомендуемая цена для каждого региона",null,"-",null,"-",null,"-",null,"-"]
["Возраст, указанный на сайте","от 1 года до 17 лет",null,"-",null,"-",null,"-",null,"-"]
["Направления программ","Иностранные языки 5: Английский | Немецкий | Китайский | Испанский | Французский\nКаникулярные программы на английском языке\nПодготовка к школе на русском: Окружающий мир | Чтение и письмо | Математика\nРазвитие интеллекта на русском: Каллиграфия | Скорочтение | Мнемотехника | Ментальная арифметика | Раннее развитие от 1 года | Арт-терапия\nПрограммирование и математика: Scratch Junior | Minecraft\nКоррекционные программы: Диагностика | Коррекция дисграфии | Развитие речи | Логопедическое чтение\nПраздники: Сценарии праздников, открытых уроков и мероприятий",null,"-",null,"-",null,"-",null,"-"]

{"sheet":"11","index":10,"n_rows":8,"n_cols":11,"rows_kept":8,"cut":false,"hidden":false,"merged":[[5,1,5,2],[5,3,5,4],[5,5,5,6],[5,7,5,8],[5,9,5,10]]}
[]
[]
[]
[]
[]
[null,"ПОЛИГЛОТИКИ",null,"Франшиза 2",null,"Франшиза 3",null,"Франшиза 4",null,"Франшиза 5"]
[null,"Информация","Баллы","Информация","Баллы","Информация","Баллы","Информация","Баллы","Информация","Баллы"]
["Комплект передачи в рамках франчайзинга","1) Авторские методики и учебные планы; \n2) бренд-бук; \n3) сайт и CRM система  \n4) комплект рабочей документации; \n5) доступ к более 90 авторским программам и обучению работы по ним; \n6) сценарии праздников и промо-мероприятий; \n7) руководство по управлению бизнесом и детальный бизнес-план; \n8) руководство по продвижению и соцсети;\n9) поддержка и обучение 3 бизнес-кураторов- действующий франчайзи \n10) макеты всех рекламных материалов и  изготовление рекламных макетов без ограничения.\n11) документы на получение государственной субсидии для новых предпринимателей\n12) документы и пошаговый алгоритм получения лицензии\n13) консультации по  вопросам: юридические, бухгалтерские, налоговые.\n14) помощь в поиске, отборе и найме персонала, собеседования и тестирование педагогов\n15) участие в общих корпоративных мероприятиях",null,"-",null,"-",null,"-",null,"-"]

{"sheet":"12","index":11,"n_rows":8,"n_cols":11,"rows_kept":8,"cut":false,"hidden":false,"merged":[[5,1,5,2],[5,3,5,4],[5,5,5,6],[5,7,5,8],[5,9,5,10]]}
[]
[]
[]
[]
[]
[null,"ПОЛИГЛОТИКИ",null,"Франшиза 2",null,"Франшиза 3",null,"Франшиза 4",null,"Франшиза 5"]
[null,"Информация","Баллы","Информация","Баллы","Информация","Баллы","Информация","Баллы","Информация","Баллы"]
["Дополнительный критерий","-",null,"-",null,"-",null,"-",null,"-"]

{"sheet":"Общая","index":12,"n_rows":45,"n_cols":11,"rows_kept":45,"cut":false,"hidden":false,"merged":[[5,1,5,2],[5,3,5,4],[5,5,5,6],[5,7,5,8],[5,9,5,10],[43,1,43,2],[43,3,43,4],[43,5,43,6],[43,7,43,8],[43,9,43,10]]}
[]
[]
[]
[]
[]
[null,"ПОЛИГЛОТИКИ",null,"Франшиза 2",null,"Франшиза 3",null,"Франшиза 4",null,"Франшиза 5"]
[null,"Информация","Баллы","Информация","Баллы","Информация","Баллы","Информация","Баллы","Информация","Баллы"]
["Сайт франшизы",{"$f":"'2'!B8","v":"https://www.poliglotiki.ru/franchajzing.html"},{"$f":"'2'!C8","v":0},{"$f":"'2'!D8","v":"-"},{"$f":"'2'!E8","v":0},{"$f":"'2'!F8","v":"-"},{"$f":"'2'!G8","v":0},{"$f":"'2'!H8","v":"-"},{"$f":"'2'!I8","v":0},{"$f":"'2'!J8","v":"-"},{"$f":"'2'!K8","v":0}]
["Поддомен на корп.сайте или сайт",{"$f":"'2'!B9","v":"да/да"},{"$f":"'2'!C9","v":0},{"$f":"'2'!D9","v":"-"},{"$f":"'2'!E9","v":0},{"$f":"'2'!F9","v":"-"},{"$f":"'2'!G9","v":0},{"$f":"'2'!H9","v":"-"},{"$f":"'2'!I9","v":0},{"$f":"'2'!J9","v":"-"},{"$f":"'2'!K9","v":0}]
["Раскрученность бренда",{"$f":"'2'!B10","v":"Более 10 тыс публикаций:  Forbes, Коммерсант, РБК, Известия, и т.д. \nТОП-10 Forbes, ТОП-50 РБК"},{"$f":"'2'!C10","v":0},{"$f":"'2'!D10","v":"-"},{"$f":"'2'!E10","v":0},{"$f":"'2'!F10","v":"-"},{"$f":"'2'!G10","v":0},{"$f":"'2'!H10","v":"-"},{"$f":"'2'!I10","v":0},{"$f":"'2'!J10","v":"-"},{"$f":"'2'!K10","v":0}]
["Год основания",{"$f":"'2'!B11","v":2006},{"$f":"'2'!C11","v":0},{"$f":"'2'!D11","v":"-"},{"$f":"'2'!E11","v":0},{"$f":"'2'!F11","v":"-"},{"$f":"'2'!G11","v":0},{"$f":"'2'!H11","v":"-"},{"$f":"'2'!I11","v":0},{"$f":"'2'!J11","v":"-"},{"$f":"'2'!K11","v":0}]
["Достижения",{"$f":"'2'!B12","v":"Лауреат «Лидеры России - 2021» Северо-Западного федерального округа.\nПобедитель программы для социальных предпринимателей «Навстречу импакт-инвестициям» 2020.\nФиналист конкурса стартапов EdTech Challenge B2C 2021.\n2 место в акселераторе White Night Startup 2021.\nЛидерский проект Агентства стратегических инициатив (АСИ) 2022.\nТОП-10 самых выгодных франшиз России Forbes 2019, 2020, 2021, 2022.\n2 место в рейтинге ТОП-10 Forbes 2023 с инвестициями 1-5 млн. "},{"$f":"'2'!C12","v":0},{"$f":"'2'!D12","v":"-"},{"$f":"'2'!E12","v":0},{"$f":"'2'!F12","v":"-"},{"$f":"'2'!G12","v":0},{"$f":"'2'!H12","v":"-"},{"$f":"'2'!I12","v":0},{"$f":"'2'!J12","v":"-"},{"$f":"'2'!K12","v":0}]
["Головная компания, город",{"$f":"'3'!B8","v":"Санкт-Петербург"},{"$f":"'3'!C8","v":0},{"$f":"'3'!D8","v":"-"},{"$f":"'3'!E8","v":0},{"$f":"'3'!F8","v":"-"},{"$f":"'3'!G8","v":0},{"$f":"'3'!H8","v":"-"},{"$f":"'3'!I8","v":0},{"$f":"'3'!J8","v":"-"},{"$f":"'3'!K8","v":0}]
["Страны присутствия, шт",{"$f":"'3'!B9","v":"Россия, Казахстан и Азербайджан"},{"$f":"'3'!C9","v":0},{"$f":"'3'!D9","v":"-"},{"$f":"'3'!E9","v":0},{"$f":"'3'!F9","v":"-"},{"$f":"'3'!G9","v":0},{"$f":"'3'!H9","v":"-"},{"$f":"'3'!I9","v":0},{"$f":"'3'!J9","v":"-"},{"$f":"'3'!K9","v":0}]
["Города присутствия, шт",{"$f":"'3'!B10","v":89},{"$f":"'3'!C10","v":0},{"$f":"'3'!D10","v":"-"},{"$f":"'3'!E10","v":0},{"$f":"'3'!F10","v":"-"},{"$f":"'3'!G10","v":0},{"$f":"'3'!H10","v":"-"},{"$f":"'3'!I10","v":0},{"$f":"'3'!J10","v":"-"},{"$f":"'3'!K10","v":0}]
["Количество открытых точек (Свои/франшиза)",{"$f":"'3'!B11","v":"1 / 175+"},{"$f":"'3'!C11","v":0},{"$f":"'3'!D11","v":"-"},{"$f":"'3'!E11","v":0},{"$f":"'3'!F11","v":"-"},{"$f":"'3'!G11","v":0},{"$f":"'3'!H11","v":"-"},{"$f":"'3'!I11","v":0},{"$f":"'3'!J11","v":"-"},{"$f":"'3'!K11","v":0}]
["Тип договора",{"$f":"'4'!B8","v":"Договор коммерческой концессии с регистрацией в Роспатенте и ФИПС "},{"$f":"'4'!C8","v":0},{"$f":"'4'!D8","v":"-"},{"$f":"'4'!E8","v":0},{"$f":"'4'!F8","v":"-"},{"$f":"'4'!G8","v":0},{"$f":"'4'!H8","v":"-"},{"$f":"'4'!I8","v":0},{"$f":"'4'!J8","v":"-"},{"$f":"'4'!K8","v":0}]
["Возможность общения с партнёрами",{"$f":"'4'!B9","v":"открытая информация (адреса центров на сайте poliglotiki.ru), по запросу контакты партнеров из конкретных городов для экскурсии,\nобщий чат с партнерами после покупки франшизы,\nрегулярные онлайн и офлайн встречи "},{"$f":"'4'!C9","v":0},{"$f":"'4'!D9","v":"-"},{"$f":"'4'!E9","v":0},{"$f":"'4'!F9","v":"-"},{"$f":"'4'!G9","v":0},{"$f":"'4'!H9","v":"-"},{"$f":"'4'!I9","v":0},{"$f":"'4'!J9","v":"-"},{"$f":"'4'!K9","v":0}]
["Бизнес-модель",{"$f":"'4'!B10","v":"1. Детский образовательный центр\n2. Частная школа с семейными классами\n3. Полилнгвальный детский сад\n4. Онлайн-обучение детей"},{"$f":"'4'!C10","v":0},{"$f":"'4'!D10","v":"-"},{"$f":"'4'!E10","v":0},{"$f":"'4'!F10","v":"-"},{"$f":"'4'!G10","v":0},{"$f":"'4'!H10","v":"-"},{"$f":"'4'!I10","v":0},{"$f":"'4'!J10","v":"-"},{"$f":"'4'!K10","v":0}]
["Паушальный   взнос",{"$f":"'5'!B8","v":"от 180 000 руб. (город от 50тыс.чел. населения) до 490 000 руб. (миллионник)"},{"$f":"'5'!C8","v":0},{"$f":"'5'!D8","v":"-"},{"$f":"'5'!E8","v":0},{"$f":"'5'!F8","v":"-"},{"$f":"'5'!G8","v":0},{"$f":"'5'!H8","v":"-"},{"$f":"'5'!I8","v":0},{"$f":"'5'!J8","v":"-"},{"$f":"'5'!K8","v":0}]
["Специальные условия",{"$f":"'5'!B9","v":"Отсрочка по оплате роялти до момента открытия центра.\nРассрочка на год без процентов на вторую половину взноса.\nГарантия на первые 50 клиентов.\nОткрытие бесплатно второй точки в течение двух лет на незанятой территории своего города.\n"},{"$f":"'5'!C9","v":0},{"$f":"'5'!D9","v":"-"},{"$f":"'5'!E9","v":0},{"$f":"'5'!F9","v":"-"},{"$f":"'5'!G9","v":0},{"$f":"'5'!H9","v":"-"},{"$f":"'5'!I9","v":0},{"$f":"'5'!J9","v":"-"},{"$f":"'5'!K9","v":0}]
["Роялти",{"$f":"'5'!B10","v":"Детский центр: от 16 000 руб.\nШкола: от 16 000 руб.\nДетский сад: от 20 000 руб."},{"$f":"'5'!C10","v":0},{"$f":"'5'!D10","v":"-"},{"$f":"'5'!E10","v":0},{"$f":"'5'!F10","v":"-"},{"$f":"'5'!G10","v":0},{"$f":"'5'!H10","v":"-"},{"$f":"'5'!I10","v":0},{"$f":"'5'!J10","v":"-"},{"$f":"'5'!K10","v":0}]
["Маркетинговый сбор",{"$f":"'5'!B11","v":"нет"},{"$f":"'5'!C11","v":0},{"$f":"'5'!D11","v":"-"},{"$f":"'5'!E11","v":0},{"$f":"'5'!F11","v":"-"},{"$f":"'5'!G11","v":0},{"$f":"'5'!H11","v":"-"},{"$f":"'5'!I11","v":0},{"$f":"'5'!J11","v":"-"},{"$f":"'5'!K11","v":0}]
["Общие инвестиции",{"$f":"'6'!B8","v":"Детский центр:\nШкола: от 3 млн руб.\nДетский сад:1,7 млн руб"},{"$f":"'6'!C8","v":0},{"$f":"'6'!D8","v":"-"},{"$f":"'6'!E8","v":0},{"$f":"'6'!F8","v":"-"},{"$f":"'6'!G8","v":0},{"$f":"'6'!H8","v":"-"},{"$f":"'6'!I8","v":0},{"$f":"'6'!J8","v":"-"},{"$f":"'6'!K8","v":0}]
["Срок окупаемости",{"$f":"'6'!B9","v":"Детский центр: от 6 мес.\nШкола: от 8 мес.\nДетский сад: от 6 мес."},{"$f":"'6'!C9","v":0},{"$f":"'6'!D9","v":"-"},{"$f":"'6'!E9","v":0},{"$f":"'6'!F9","v":"-"},{"$f":"'6'!G9","v":0},{"$f":"'6'!H9","v":"-"},{"$f":"'6'!I9","v":0},{"$f":"'6'!J9","v":"-"},{"$f":"'6'!K9","v":"00:00:00"}]
["Защита инвестиций",{"$f":"'6'!B11","v":" Право на использование ТМ и открытие точки на закрепленной за партнером территории, возможность бесплатно открыть вторую точку в течение 2 лет.\nПолучение субсидий и грантов, льгот для социальных предприятий."},{"$f":"'6'!C11","v":0},{"$f":"'6'!D11","v":"-"},{"$f":"'6'!E11","v":0},{"$f":"'6'!F11","v":"-"},{"$f":"'6'!G11","v":0},{"$f":"'6'!H11","v":"-"},{"$f":"'6'!I11","v":0},{"$f":"'6'!J11","v":"-"},{"$f":"'6'!K11","v":"00:00:00"}]
["Оборудование",{"$f":"'7'!B8","v":"Контакты поставщиков для закупки мебели и оборудования в детский центр"},{"$f":"'7'!C8","v":0},{"$f":"'7'!D8","v":"-"},{"$f":"'7'!E8","v":0},{"$f":"'7'!F8","v":"-"},{"$f":"'7'!G8","v":0},{"$f":"'7'!H8","v":"-"},{"$f":"'7'!I8","v":0},{"$f":"'7'!J8","v":"-"},{"$f":"'7'!K8","v":0}]
["Используемые технологии",{"$f":"'7'!B9","v":"Собственная CRM-система для управленческого учета\nОбразовательная онлайн-платформа с бесплатным доступом ко всем курсам Poliglotiki.com\n"},{"$f":"'7'!C9","v":0},{"$f":"'7'!D9","v":"-"},{"$f":"'7'!E9","v":0},{"$f":"'7'!F9","v":"-"},{"$f":"'7'!G9","v":0},{"$f":"'7'!H9","v":"-"},{"$f":"'7'!I9","v":0},{"$f":"'7'!J9","v":"-"},{"$f":"'7'!K9","v":0}]
["Обслуживание, техподдержка",{"$f":"'7'!B10","v":"внутренняяя служба компании"},{"$f":"'7'!C10","v":0},{"$f":"'7'!D10","v":"-"},{"$f":"'7'!E10","v":0},{"$f":"'7'!F10","v":"-"},{"$f":"'7'!G10","v":0},{"$f":"'7'!H10","v":"-"},{"$f":"'7'!I10","v":0},{"$f":"'7'!J10","v":"-"},{"$f":"'7'!K10","v":0}]
["Заявленные доходы (мес.)",{"$f":"'8'!B8","v":"от 310 000 руб./месяц (для городов с 50 тыс. жителей)\nот 795 000 руб./месяц (для миллионников)"},{"$f":"'8'!C8","v":0},{"$f":"'8'!D8","v":"-"},{"$f":"'8'!E8","v":0},{"$f":"'8'!F8","v":"-"},{"$f":"'8'!G8","v":0},{"$f":"'8'!H8","v":"-"},{"$f":"'8'!I8","v":0},{"$f":"'8'!J8","v":"-"},{"$f":"'8'!K8","v":0}]
["Заявленные расходы (мес.)",{"$f":"'8'!B9","v":"до 60% от доходов"},{"$f":"'8'!C9","v":0},{"$f":"'8'!D9","v":"-"},{"$f":"'8'!E9","v":0},{"$f":"'8'!F9","v":"-"},{"$f":"'8'!G9","v":0},{"$f":"'8'!H9","v":"-"},{"$f":"'8'!I9","v":0},{"$f":"'8'!J9","v":"-"},{"$f":"'8'!K9","v":0}]
["Заявленная прибыль (мес.)",{"$f":"'8'!B10","v":"от 165 000 руб./месяц (для городов с 50 тыс. жителей)\nот 345 000 руб./месяц (для миллионников)"},{"$f":"'8'!C10","v":0},{"$f":"'8'!D10","v":"-"},{"$f":"'8'!E10","v":0},{"$f":"'8'!F10","v":"-"},{"$f":"'8'!G10","v":0},{"$f":"'8'!H10","v":"-"},{"$f":"'8'!I10","v":0},{"$f":"'8'!J10","v":"-"},{"$f":"'8'!K10","v":0}]
["Методика",{"$f":"'9'!B8","v":"Полное описание (и обучение) учебной методики с поурочным планированием и таймингом по 5 языкам, программы на русском языке. Около 100 авторских программ Полиглотики: https://www.poliglotiki.ru/programs.html "},{"$f":"'9'!C8","v":0},{"$f":"'9'!D8","v":"-"},{"$f":"'9'!E8","v":0},{"$f":"'9'!F8","v":"-"},{"$f":"'9'!G8","v":0},{"$f":"'9'!H8","v":"-"},{"$f":"'9'!I8","v":0},{"$f":"'9'!J8","v":"-"},{"$f":"'9'!K8","v":0}]
["Сертификация методик",{"$f":"'9'!B9","v":"Соответствуют общемировым стандартам дошкольного и школьного образования, требованиям ФГОС. Программы прошли добровольную сертификацию"},{"$f":"'9'!C9","v":0},{"$f":"'9'!D9","v":0},{"$f":"'9'!E9","v":0},{"$f":"'9'!F9","v":0},{"$f":"'9'!G9","v":0},{"$f":"'9'!H9","v":0},{"$f":"'9'!I9","v":0},{"$f":"'9'!J9","v":0},{"$f":"'9'!K9","v":0}]
["Требования к помещению",{"$f":"'9'!B10","v":"Помещение от 50 до 120 м²;\nОт двух кабинетов для занятий;\nХолл, санузел;\nНе выше 3-го этажа. Не подвал."},{"$f":"'9'!C10","v":0},{"$f":"'9'!D10","v":"-"},{"$f":"'9'!E10","v":0},{"$f":"'9'!F10","v":"-"},{"$f":"'9'!G10","v":0},{"$f":"'9'!H10","v":"-"},{"$f":"'9'!I10","v":0},{"$f":"'9'!J10","v":"-"},{"$f":"'9'!K10","v":0}]
["Обучение преподавателей",{"$f":"'9'!B11","v":"Более 130 часов вебинаров в записи. Онлайн-эфиры ежемесячно. Общий чат для педагогов. Очные тренинги, конференции, слеты в Санкт-Петербурге и Москве. Собственная система аттестации персонала. Партнер может провести обучение для неограниченного количества преподавателей своего Центра без доплат!"},{"$f":"'9'!C11","v":0},{"$f":"'9'!D11","v":"-"},{"$f":"'9'!E11","v":0},{"$f":"'9'!F11","v":"-"},{"$f":"'9'!G11","v":0},{"$f":"'9'!H11","v":"-"},{"$f":"'9'!I11","v":0},{"$f":"'9'!J11","v":"-"},{"$f":"'9'!K11","v":0}]
["Подбор преподавателей",{"$f":"'9'!B12","v":"Каждый кандидат проходит онлайн-собеседование в методистами управляющей компании, проходит тестирование знаний. По статистике методического центра сети, после многоэтапного отбора и тестирования из 50 кандидатов к работе приступает 1."},{"$f":"'9'!C12","v":0},{"$f":"'9'!D12","v":"-"},{"$f":"'9'!E12","v":0},{"$f":"'9'!F12","v":"-"},{"$f":"'9'!G12","v":0},{"$f":"'9'!H12","v":"-"},{"$f":"'9'!I12","v":0},{"$f":"'9'!J12","v":"-"},{"$f":"'9'!K12","v":0}]
["Стоимость абонемента",{"$f":"'10'!B8","v":"от 3200 руб"},{"$f":"'10'!C8","v":0},{"$f":"'10'!D8","v":"-"},{"$f":"'10'!E8","v":0},{"$f":"'10'!F8","v":"-"},{"$f":"'10'!G8","v":0},{"$f":"'10'!H8","v":"-"},{"$f":"'10'!I8","v":0},{"$f":"'10'!J8","v":"-"},{"$f":"'10'!K8","v":0}]
["Защита от ценового демпинга",{"$f":"'10'!B9","v":"контролируемая минимальная рекомендуемая цена для каждого региона"},{"$f":"'10'!C9","v":0},{"$f":"'10'!D9","v":"-"},{"$f":"'10'!E9","v":0},{"$f":"'10'!F9","v":"-"},{"$f":"'10'!G9","v":0},{"$f":"'10'!H9","v":"-"},{"$f":"'10'!I9","v":0},{"$f":"'10'!J9","v":"-"},{"$f":"'10'!K9","v":0}]
["Возраст, указанный на сайте",{"$f":"'10'!B10","v":"от 1 года до 17 лет"},{"$f":"'10'!C10","v":0},{"$f":"'10'!D10","v":"-"},{"$f":"'10'!E10","v":0},{"$f":"'10'!F10","v":"-"},{"$f":"'10'!G10","v":0},{"$f":"'10'!H10","v":"-"},{"$f":"'10'!I10","v":0},{"$f":"'10'!J10","v":"-"},{"$f":"'10'!K10","v":"00:00:00"}]
["Направления в кружке",{"$f":"'10'!B11","v":"Иностранные языки 5: Английский | Немецкий | Китайский | Испанский | Французский\nКаникулярные программы на английском языке\nПодготовка к школе на русском: Окружающий мир | Чтение и письмо | Математика\nРазвитие интеллекта на русском: Каллиграфия | Скорочтение | Мнемотехника | Ментальная арифметика | Раннее развитие от 1 года | Арт-терапия\nПрограммирование и математика: Scratch Junior | Minecraft\nКоррекционные программы: Диагностика | Коррекция дисграфии | Развитие речи | Логопедическое чтение\nПраздники: Сценарии праздников, открытых уроков и мероприятий"},{"$f":"'10'!C11","v":0},{"$f":"'10'!D11","v":"-"},{"$f":"'10'!E11","v":0},{"$f":"'10'!F11","v":"-"},{"$f":"'10'!G11","v":0},{"$f":"'10'!H11","v":"-"},{"$f":"'10'!I11","v":0},{"$f":"'10'!J11","v":"-"},{"$f":"'10'!K11","v":0}]
["Комплект передачи в рамках франчайзинга",{"$f":"'11'!B8","v":"1) Авторские методики и учебные планы; \n2) бренд-бук; \n3) сайт и CRM система  \n4) комплект рабочей документации; \n5) доступ к более 90 авторским программам и обучению работы по ним; \n6) сценарии праздников и промо-мероприятий; \n7) руководство по управлению бизнесом и детальный бизнес-план; \n8) руководство по продвижению и соцсети;\n9) поддержка и обучение 3 бизнес-кураторов- действующий франчайзи \n10) макеты всех рекламных материалов и  изготовление рекламных макетов без ограничения.\n11) документы на получение государственной субсидии для новых предпринимателей\n12) документы и пошаговый алгоритм получения лицензии\n13) консультации по  вопросам: юридические, бухгалтерские, налоговые.\n14) помощь в поиске, отборе и найме персонала, собеседования и тестирование педагогов\n15) участие в общих корпоративных мероприятиях"},{"$f":"'11'!C8","v":0},{"$f":"'11'!D8","v":"-"},{"$f":"'11'!E8","v":0},{"$f":"'11'!F8","v":"-"},{"$f":"'11'!G8","v":0},{"$f":"'11'!H8","v":"-"},{"$f":"'11'!I8","v":0},{"$f":"'11'!J8","v":"-"},{"$f":"'11'!K8","v":0}]
["Дополнительный критерий",{"$f":"'12'!B8","v":"-"},{"$f":"'12'!C8","v":0}]
["Комментарии"]
["Сумма баллов",null,{"$f":"SUM(C8:C43)","v":0},null,{"$f":"SUM(E8:E43)","v":0},null,{"$f":"SUM(G8:G43)","v":0},null,{"$f":"SUM(I8:I43)","v":0},null,{"$f":"SUM(K8:K43)","v":0}]